bitfinex/quotes_ETHUSD_20250219
["timestamp","ask_amount","ask_price","bid_price","bid_amount"]
[1739988711354,0.7901,2709.8,2709.3,3.69097]
[1739988713543,0.7901,2709.8,2709.4,3.69077]
[1739988714574,0.7901,2709.8,2709.3,3.69091]
[1739988714866,4.48042,2709.8,2709.3,3.69091]
[1739988715167,5.297472,2709.8,2709.3,3.69091]
[1739988716034,1.607152,2709.8,2709.3,3.69091]
[1739988716474,1.607152,2709.8,2708.9,5.37]
[1739988716631,0.7901,2709.8,2709.3,3.69085]
[1739988716968,0.7901,2709.8,2709.3,7.38176]
[1739988717169,0.7901,2709.8,2709.3,3.69085]
[1739988717667,0.7901,2709.8,2709.3,7.38177]
[1739988717851,0.7901,2709.8,2709.3,3.69088]
[1739988718262,0.7901,2709.8,2709.5,3.6907]
[1739988718661,0.7901,2709.8,2709.4,3.69084]
[1739988719380,0.7901,2709.8,2709.4,3.69083]
[1739988720733,4.48041,2709.8,2709.3,3.69092]
[1739988720933,0.7894,2709.7,2709.3,3.69092]
[1739988721476,4.47984,2709.7,2709.1,3.69116]
[1739988721657,0.8332,2709.5,2708.9,3.69146]
[1739988721858,0.8332,2709.4,2708.9,3.69146]
[1739988722062,0.8332,2709.4,2709.0,3.69138]
[1739988722381,0.8332,2709.4,2709.2,3.69111]
[1739988722977,0.8332,2709.4,2709.3,3.69099]
[1739988723774,0.7568,2709.6,2709.5,3.69071]
[1739988724278,0.7568,2709.6,2709.3,4.42914]
[1739988724279,0.7568,2709.6,2709.4,3.69083]
[1739988726011,0.7568,2709.6,2709.0,4.45699]
[1739988726307,0.7568,2709.6,2709.5,3.69071]
[1739988726601,0.7519,2709.9,2709.5,3.69071]
[1739988726965,5.42234,2709.9,2709.4,3.69085]
[1739988727164,0.7519,2709.7,2709.3,3.69087]
[1739988727574,0.7519,2709.7,2709.2,3.69102]
[1739988727777,0.7519,2709.7,2709.4,3.69085]
[1739988729409,0.7651,2708.9,2708.2,10.45119376]
[1739988729615,0.7651,2708.8,2708.3,1.04511938]
[1739988729776,3.69188,2708.7,2708.0,0.8106]
[1739988729978,0.7651,2708.6,2708.1,3.6926]
[1739988730177,0.7651,2708.6,2708.2,3.69246]
[1739988730577,0.7651,2708.6,2708.3,3.69227]
[1739988730788,0.7651,2708.6,2708.3,4.061507]
[1739988730993,0.7651,2708.6,2708.4,3.69221]
[1739988731199,0.7651,2708.6,2708.3,3.69228]
[1739988731408,0.7651,2708.6,2708.4,3.69221]
[1739988732108,0.7651,2708.6,2708.3,3.69228]
[1739988732999,0.7651,2708.6,2708.3,7.38455]
[1739988733663,0.7651,2708.6,2708.4,3.69219]
[1739988733868,0.7651,2708.6,2708.4,3.6921]
[1739988734303,0.7651,2708.6,2708.5,3.69208]
[1739988734468,0.7651,2708.6,2708.4,3.69219]
[1739988735327,0.8197,2709.0,2708.3,3.69235]
[1739988735605,0.8197,2709.0,2708.6,3.69187]
[1739988736008,0.8197,2709.0,2708.8,3.6916]
[1739988736183,0.7759,2709.4,2708.8,3.6916]
[1739988736384,0.7759,2709.4,2709.0,3.6913]
[1739988736905,4.46676,2709.4,2708.9,3.69142]
[1739988737089,4.46683,2709.4,2708.8,3.69158]
[1739988737291,4.46308,2709.3,2708.6,3.69184]
[1739988737503,0.772,2709.3,2708.5,3.69207]
[1739988737669,0.772,2708.9,2708.5,3.69207]
[1739988738072,0.772,2708.9,2708.4,3.0]
[1739988738418,0.772,2708.9,2708.4,6.69213]
[1739988738775,0.772,2708.9,2708.4,3.0]
[1739988739006,1.587484,2708.9,2708.4,6.69221]
[1739988739798,0.772,2708.9,2708.5,3.69198]
[1739988740519,0.772,2708.9,2708.3,3.69225]
[1739988740520,4.46353,2708.9,2708.3,3.69225]
[1739988740837,4.46353,2708.9,2708.4,3.69215]
[1739988740995,0.772,2708.9,2708.4,3.69215]
[1739988741203,4.46354,2708.9,2708.4,3.6922]
[1739988741524,0.772,2708.9,2708.4,3.6922]
[1739988742404,4.46355,2708.9,2708.4,3.6922]
[1739988742729,5.815043,2708.9,2708.4,3.6922]
[1739988742929,0.772,2708.9,2708.5,3.69203]
[1739988743227,0.772,2708.9,2708.4,3.69215]
[1739988743988,0.772,2708.9,2708.5,3.69195]
[1739988745030,0.772,2708.9,2708.5,3.69201]
[1739988745190,0.772,2708.9,2708.6,3.69192]
[1739988745531,0.772,2708.9,2708.5,3.69206]
[1739988745836,0.04104312,2708.8,2708.5,3.69199]
[1739988746191,0.04104312,2708.8,2708.4,3.6922]
[1739988746394,0.04104312,2708.8,2708.5,3.69207]
[1739988747928,0.04104312,2708.8,2708.4,3.69219]
[1739988748134,0.04104312,2708.8,2708.3,3.69224]
[1739988748299,0.04104312,2708.8,2708.5,3.69207]
[1739988748621,0.04104312,2708.8,2708.4,3.69219]
[1739988749330,1.02751043,2708.8,2708.4,3.69219]
[1739988749490,3.69182,2708.7,2708.2,3.69242]
[1739988749696,0.8246,2708.7,2708.3,3.69229]
[1739988749931,0.04071029,2708.6,2707.9,0.1502251]
[1739988750239,3.69176,2708.8,2707.9,0.1502251]
[1739988750240,0.8246,2708.0,2707.9,0.1502251]
[1739988750403,9.87736,2708.0,2707.9,0.1502251]
[1739988750603,7.92264536,2708.0,2707.9,0.1502251]
[1739988750994,11.61540536,2708.0,2707.9,0.1502251]
[1739988751420,15.16540536,2708.0,2707.9,0.1502251]
[1739988751627,15.28540536,2708.0,2707.9,0.1502251]
[1739988751935,11.85964536,2708.0,2707.9,0.1502251]
[1739988752840,15.55240536,2708.0,2707.9,0.1502251]
[1739988753830,8.59264536,2708.0,2707.9,0.1502251]
[1739988754037,10.58695225,2708.0,2707.9,0.1502251]
[1739988755496,6.89419225,2708.0,2707.9,0.1502251]
[1739988756237,10.58695225,2708.0,2707.9,0.1502251]
[1739988757512,6.89419225,2708.0,2707.9,0.1502251]
[1739988757838,10.58695225,2708.0,2707.9,0.1502251]
[1739988757994,12.04172248,2708.0,2707.9,0.1502251]
[1739988759239,11.37172248,2708.0,2707.9,0.1502251]
[1739988760295,7.67896248,2708.0,2707.9,0.1502251]
[1739988760495,6.22419225,2708.0,2707.9,0.1502251]
[1739988763757,9.91695225,2708.0,2707.9,0.1502251]
[1739988764262,6.22419225,2708.0,2707.9,0.1502251]
[1739988764565,5.39959225,2708.0,2707.9,0.1502251]
[1739988764920,0.03959225,2708.0,2707.9,0.1502251]
[1739988765121,0.03959225,2708.0,2707.9,0.53454961]
[1739988765321,5.36,2708.3,2707.9,0.53454961]
[1739988765550,5.36,2708.3,2707.9,0.1502251]
[1739988766869,0.2732026,2708.9,2707.9,3.29774616]
[1739988767165,0.2732026,2708.9,2708.0,4.49623]
[1739988767166,5.36,2708.8,2708.0,4.49623]
[1739988767324,6.37213726,2708.8,2708.0,4.49623]
[1739988767526,10.06380726,2708.8,2708.0,8.18889]
[1739988767920,10.06380726,2708.8,2708.0,4.49616]
[1739988768362,3.69205,2708.6,2708.0,0.8035]
[1739988768862,3.69242,2708.3,2707.9,0.1502251]
[1739988769162,4.430535,2708.5,2707.9,0.1502251]
[1739988769522,0.738385,2708.5,2707.9,0.1502251]
[1739988769733,4.45006,2708.0,2707.9,0.1502251]
[1739988769944,6.1173,2708.3,2707.9,0.1502251]
[1739988770169,9.80967,2708.3,2707.9,0.1502251]
[1739988770337,13.50215,2708.3,2707.9,0.1502251]
[1739988770541,3.6927,2708.1,2707.9,0.1502251]
[1739988770742,1.350242,2708.1,2707.9,0.1502251]
[1739988770958,3.69263,2708.1,2707.9,0.1502251]
[1739988772069,5.36,2708.3,2707.9,0.1502251]
[1739988772373,0.8186,2708.6,2707.9,0.1502251]
[1739988772531,3.69215,2708.5,2707.9,0.1502251]
[1739988772731,3.69215,2708.5,2708.0,0.8205]
[1739988773361,0.8186,2708.6,2708.0,0.8205]
[1739988773531,4.51055,2708.6,2708.0,4.51324]
[1739988773731,4.51064,2708.6,2708.0,0.8205]
[1739988773926,3.69208,2708.5,2708.0,0.8205]
[1739988774273,4.50939,2708.1,2707.9,0.1502251]
[1739988774644,3.69276,2708.0,2707.9,0.1502251]
[1739988777549,4.36276,2708.0,2707.9,0.1502251]
[1739988778092,4.63376,2708.0,2707.9,0.1502251]
[1739988779498,9.99376,2708.0,2707.9,0.1502251]
[1739988781097,10.83287643,2708.0,2707.9,0.1502251]
[1739988783067,12.19597643,2708.0,2707.9,0.1502251]
[1739988783390,15.19597643,2708.0,2707.9,0.0534251]
[1739988784390,15.19597643,2708.0,2707.9,5.1e-06]
[1739988784998,3.69448,2706.8,2706.2,0.8304]
[1739988785298,0.7897,2706.7,2706.2,0.8304]
[1739988785602,4.48425,2706.7,2706.2,0.8304]
[1739988785896,3.69481,2706.5,2706.2,0.8304]
[1739988786094,3.69475,2706.6,2706.2,0.8304]
[1739988786254,8.1789,2706.7,2706.2,0.8304]
[1739988786449,0.7897,2706.7,2706.2,0.8304]
[1739988787063,0.7897,2706.7,2706.0,0.7604]
[1739988787271,3.69496,2706.4,2706.0,0.7604]
[1739988788003,3.69504,2706.4,2706.0,0.7604]
[1739988788304,3.69502,2706.4,2706.0,0.7604]
[1739988788656,3.69476,2706.6,2706.0,0.7604]
[1739988789094,3.69487,2706.5,2706.0,0.7604]
[1739988789400,3.69487,2706.5,2706.0,1.206009]
[1739988789611,3.69476,2706.6,2706.0,1.206009]
[1739988789805,3.69476,2706.6,2705.6,3.69598]
[1739988789806,3.69565,2705.9,2705.2,0.8323]
[1739988789970,0.272,2705.8,2705.2,0.8323]
[1739988790294,3.14752106,2706.2,2705.2,0.8323]
[1739988790295,3.272,2706.1,2705.2,0.8323]
[1739988790497,5.632,2706.2,2705.7,3.69589]
[1739988790800,5.36,2706.2,2705.9,3.69562]
[1739988791003,5.36,2706.2,2705.0,9.0668]
[1739988791004,3.14752106,2706.2,2705.0,9.0668]
[1739988791169,3.14752106,2706.2,2705.4,0.8062]
[1739988791170,3.69551,2706.0,2705.4,0.8062]
[1739988791361,3.69569,2705.9,2705.4,0.8062]
[1739988791562,3.14752106,2705.6,2705.1,0.1502251]
[1739988791758,7.52938,2705.2,2705.1,0.1502251]
[1739988791971,13.43938,2705.2,2705.1,0.1502251]
[1739988792214,13.71438,2705.2,2705.1,0.1502251]
[1739988792499,9.91718018,2705.2,2705.1,0.1502251]
[1739988792706,11.38334426,2705.2,2705.1,0.1502251]
[1739988793266,8.36,2705.2,2705.1,0.1502251]
[1739988793462,5.36,2705.2,2705.1,0.1502251]
[1739988793775,12.60658,2705.2,2705.1,0.1502251]
[1739988794007,12.60658,2705.2,2705.1,5.1e-06]
[1739988794008,13.42478,2705.2,2705.1,5.1e-06]
[1739988794209,0.764,2704.4,2703.8,0.8205]
[1739988794506,3.69781,2704.3,2703.8,0.8205]
[1739988794799,3.69781,2704.3,2703.0,8.51752106]
[1739988794800,7.39583,2704.3,2703.5,4.49327]
[1739988794965,5.31,2704.4,2703.9,3.69827]
[1739988795164,5.31,2704.4,2703.8,0.7944]
[1739988795559,9.00776,2704.4,2703.8,0.7944]
[1739988795759,5.31,2704.4,2703.8,0.7944]
[1739988795977,9.00768,2704.4,2703.8,0.7944]
[1739988796214,9.00768,2704.4,2703.9,0.449298]
[1739988796739,9.00768,2704.4,2703.8,0.7944]
[1739988796896,3.69793,2704.3,2703.8,0.7944]
[1739988797096,9.00768,2704.4,2703.8,0.7944]
[1739988797419,3.69785,2704.3,2703.8,0.7944]
[1739988797938,9.00768,2704.4,2703.8,0.7944]
[1739988797939,12.70546,2704.4,2703.8,0.7944]
[1739988798326,3.69787,2704.3,2703.8,0.7944]
[1739988800003,3.69803,2704.2,2703.8,0.7944]
[1739988800227,3.69785,2704.3,2703.8,0.7944]
[1739988800596,3.69803,2704.2,2703.8,0.7944]
[1739988800801,3.6982,2704.1,2703.3,4.4924]
[1739988801133,3.69838,2703.9,2703.3,4.4924]
[1739988801446,3.69863,2703.7,2702.9,0.7933]
[1739988801614,3.69891,2703.5,2702.9,5.312276]
[1739988801821,9.00863,2703.7,2702.9,5.312276]
[1739988802049,3.6989,2703.5,2702.9,5.312276]
[1739988802215,6.84642106,2703.5,2702.9,0.7933]
[1739988802419,3.69934,2703.2,2702.4,1.52318818]
[1739988802651,3.69926,2703.3,2702.6,3.7001]
[1739988802821,0.7678,2703.1,2702.4,0.1502251]
[1739988803004,3.0,2702.8,2702.4,0.1502251]
[1739988803204,3.70002,2702.7,2702.4,0.1502251]
[1739988803413,3.7678,2702.5,2702.4,0.1502251]
[1739988803975,7.46807,2702.5,2702.4,0.1502251]
[1739988804178,9.76439521,2702.5,2702.4,0.1502251]
[1739988804847,13.75015164,2702.5,2702.4,0.1502251]
[1739988807176,0.278,2702.6,2702.4,0.1502251]
[1739988807473,0.278,2702.7,2702.4,0.1502251]
[1739988807975,3.278,2702.7,2702.4,0.1502251]
[1739988808283,3.70023,2702.6,2702.4,0.1502251]
[1739988808447,0.370023,2702.5,2702.4,0.1502251]
[1739988808651,3.0,2702.7,2702.4,0.1502251]
[1739988808845,0.28,2702.8,2702.4,0.1502251]
[1739988809161,5.31,2703.2,2702.6,3.70004]
[1739988809344,9.00935,2703.2,2702.5,0.803]
[1739988809752,3.0,2703.1,2702.6,3.70006]
[1739988809948,5.31,2703.2,2702.9,3.69962]
[1739988810166,5.31,2703.2,2702.6,0.83536151]
[1739988810481,3.69954,2703.1,2702.5,0.803]
[1739988811210,9.0094,2703.2,2702.5,4.50325]
[1739988811380,9.0094,2703.2,2702.6,3.7001]
[1739988811581,9.0094,2703.2,2702.5,0.803]
[1739988811776,3.7,2702.7,2702.4,0.1502251]
[1739988812398,3.69983,2702.9,2702.4,0.1502251]
[1739988812598,3.69997,2702.8,2702.4,0.1502251]
[1739988812907,8.7196,2702.9,2702.4,0.1502251]
[1739988813282,5.01976,2702.9,2702.4,0.1502251]
[1739988813479,3.70002,2702.7,2702.4,0.1502251]
[1739988814009,3.70019,2702.6,2702.4,0.1502251]
[1739988814166,4.47847,2702.5,2702.4,0.1502251]
[1739988814366,8.02847,2702.5,2702.4,0.1502251]
[1739988815107,3.7782,2702.5,2702.4,0.1502251]
[1739988815311,3.0,2702.5,2702.4,0.1502251]
[1739988815916,0.28,2702.7,2702.4,0.1502251]
[1739988816316,3.0,2702.6,2702.4,0.1502251]
[1739988816464,3.70027,2702.5,2702.4,0.1502251]
[1739988817408,6.34995,2702.9,2702.4,0.1502251]
[1739988817583,7.704831,2702.8,2702.4,0.1502251]
[1739988817904,5.31,2702.9,2702.4,0.1502251]
[1739988818206,3.98575643,2703.6,2702.7,4.48291]
[1739988818207,5.31,2703.2,2702.7,4.48291]
[1739988818414,5.31,2703.2,2702.7,8.18284]
[1739988818617,9.0094,2703.2,2702.7,0.783]
[1739988818863,9.91034,2703.2,2702.7,0.783]
[1739988819064,3.69948,2703.1,2702.7,0.783]
[1739988819567,6.21094,2703.2,2702.7,0.783]
[1739988819777,6.21094,2703.2,2702.7,4.48299]
[1739988820071,5.31,2703.2,2702.7,4.48299]
[1739988820851,5.31,2703.2,2702.7,4.48292]
[1739988823180,5.31,2703.2,2702.8,3.69986]
[1739988823378,5.31,2703.2,2702.9,3.69971]
[1739988823690,5.31,2703.2,2702.8,3.69979]
[1739988823884,5.31,2703.2,2702.9,3.69971]
[1739988824174,3.0,2703.4,2702.9,3.69971]
[1739988824376,3.0,2703.4,2702.8,3.69979]
[1739988824752,4.0418,2703.6,2703.0,3.69952]
[1739988824968,4.65886261,2703.6,2702.7,0.783]
[1739988825167,3.28,2703.6,2703.2,0.7878]
[1739988825492,3.0,2703.6,2703.2,0.7878]
[1739988826225,9.00864,2703.7,2703.2,0.7878]
[1739988826371,3.69877,2703.6,2703.2,0.7878]
[1739988826569,5.48886061,2703.6,2703.2,0.7878]
[1739988827298,5.48895061,2703.6,2702.9,4.50361]
[1739988827503,3.69897,2703.5,2702.9,0.8039]
[1739988827704,5.48896061,2703.6,2702.9,0.8039]
[1739988827997,9.18782061,2703.6,2702.9,4.50362]
[1739988828150,9.18784061,2703.6,2702.9,0.8039]
[1739988828350,3.69891,2703.5,2702.9,0.8039]
[1739988828785,4.82593108,2703.5,2702.9,0.8039]
[1739988829000,3.8316,2703.3,2702.6,0.8058]
[1739988829147,3.69962,2703.0,2702.4,0.1502251]
[1739988829348,3.69945,2703.1,2702.4,0.9560251]
[1739988829578,0.8316,2703.3,2702.4,0.9560251]
[1739988829783,0.38316,2703.2,2702.4,0.9560251]
[1739988829968,5.69316,2703.2,2702.4,0.9560251]
[1739988830165,9.39248,2703.2,2702.6,3.70004]
[1739988830395,3.69951,2703.1,2702.6,3.70004]
[1739988830564,5.69316,2703.2,2702.6,3.70004]
[1739988830766,5.69316,2703.2,2702.6,7.4001]
[1739988830997,5.31,2703.2,2702.9,0.7912]
[1739988831322,5.31,2703.7,2702.9,0.7912]
[1739988831473,5.31,2703.7,2703.2,3.69924]
[1739988832159,5.31,2703.7,2703.3,3.69911]
[1739988832495,5.31,2703.7,2703.5,3.69883]
[1739988832654,5.31,2703.7,2703.4,0.8199]
[1739988832859,5.31,2703.7,2703.5,3.69889]
[1739988833073,5.31,2703.7,2703.3,4.438946]
[1739988833074,5.31,2703.7,2703.3,3.69909]
[1739988833301,5.31,2703.7,2703.3,3.69908]
[1739988833460,5.31,2703.7,2703.4,3.69898]
[1739988833656,5.31,2703.7,2703.4,0.8199]
[1739988834094,5.31,2703.7,2703.4,4.51887]
[1739988834361,5.31,2703.7,2703.4,0.8199]
[1739988836802,4.51071,2704.1,2703.4,4.51888]
[1739988837099,0.8126,2704.1,2703.4,0.8199]
[1739988837301,3.28,2704.2,2703.7,3.69857]
[1739988837999,3.0,2704.2,2703.8,3.69838]
[1739988838207,3.0,2704.3,2703.9,3.69828]
[1739988838362,5.31,2704.5,2703.9,4.46868]
[1739988838561,9.00762,2704.5,2703.9,4.46876]
[1739988838762,3.6977,2704.4,2703.9,0.7704]
[1739988838962,4.968442,2704.3,2703.9,0.7704]
[1739988839904,3.69831,2704.0,2703.5,0.7704]
[1739988840061,4.46584,2704.2,2703.5,0.7704]
[1739988840261,4.46584,2704.2,2703.6,3.69876]
[1739988840465,0.7678,2704.2,2703.6,3.69876]
[1739988840665,3.69818,2704.1,2703.5,0.7704]
[1739988840867,3.69818,2704.1,2703.5,4.46921]
[1739988841171,1.6414092,2704.2,2703.6,3.69876]
[1739988841390,3.0,2704.4,2703.8,3.69847]
[1739988841914,0.73005684,2704.7,2704.3,3.69778]
[1739988842065,3.73005684,2704.7,2704.3,3.69778]
[1739988842600,3.73005684,2704.7,2703.9,8.17921]
[1739988842800,7.42741684,2704.7,2703.9,4.48092]
[1739988842957,9.14682252,2704.7,2703.9,4.48092]
[1739988843163,0.73005684,2704.7,2704.5,3.69743]
[1739988843387,5.31,2704.8,2704.3,3.69774]
[1739988843388,5.31,2704.8,2704.4,3.69766]
[1739988843806,5.31,2704.8,2704.4,0.8279]
[1739988844531,5.31,2704.8,2704.1,0.8279]
[1739988844689,3.69726,2704.7,2704.1,0.8279]
[1739988845031,1.346385,2704.7,2704.1,4.52588]
[1739988845236,1.346385,2704.7,2704.2,3.69782]
[1739988845931,9.00719,2704.8,2704.1,4.52598]
[1739988846290,3.69729,2704.7,2704.1,4.52598]
[1739988846627,3.69729,2704.7,2704.1,0.8279]
[1739988846803,9.00719,2704.8,2704.1,0.8279]
[1739988847137,13.681089,2704.8,2704.2,3.69794]
[1739988847293,9.983859,2704.8,2704.2,3.69794]
[1739988847494,13.681119,2704.8,2704.2,3.69794]
[1739988847719,9.983859,2704.8,2704.2,3.69794]
[1739988847904,13.681069,2704.8,2704.2,3.69794]
[1739988848106,1.4440569,2704.7,2704.2,3.69794]
[1739988848734,5.31,2704.8,2704.3,3.69774]
[1739988848956,3.0,2704.7,2704.1,0.8279]
[1739988849107,0.8063,2704.6,2703.8,0.6537]
[1739988849309,7.77588,2704.5,2703.8,4.35213]
[1739988849856,3.6977,2704.4,2703.8,0.6537]
[1739988850058,3.69788,2704.3,2703.8,0.6537]
[1739988850267,0.8063,2703.9,2703.2,3.69925]
[1739988850440,3.69851,2703.8,2703.2,3.69922]
[1739988850765,6.1163,2703.9,2703.3,7.39821]
[1739988850766,9.81467,2703.9,2703.3,7.39821]
[1739988850966,6.1163,2703.9,2703.3,3.69909]
[1739988851123,6.1163,2703.9,2703.4,3.69904]
[1739988851320,7.46757,2703.9,2703.4,3.69904]
[1739988851840,5.31,2703.9,2703.6,3.69874]
[1739988852035,5.31,2703.9,2702.8,3.0]
[1739988852240,5.31,2703.9,2703.6,3.69866]
[1739988852443,5.31,2703.9,2703.7,4.53041]
[1739988853368,5.31,2703.9,2703.7,0.8318]
[1739988853875,5.31,2703.9,2703.4,0.7939]
[1739988854230,12.70691,2703.9,2703.4,0.7939]
[1739988854432,9.00843,2703.9,2703.4,0.7939]
[1739988855072,3.69854,2703.8,2703.4,0.7939]
[1739988855366,3.6987,2703.7,2703.4,0.7939]
[1739988855749,11.077321,2703.9,2703.4,0.7939]
[1739988855750,3.69851,2703.8,2703.4,0.7939]
[1739988856571,11.077321,2703.9,2703.2,0.8146]
[1739988856730,3.69849,2703.8,2703.2,0.8146]
[1739988857269,3.69849,2703.8,2703.2,4.51386]
[1739988857444,3.69868,2703.7,2703.2,0.8146]
[1739988858138,3.69868,2703.7,2703.2,4.51388]
[1739988858832,3.69851,2703.8,2703.2,4.51388]
[1739988859035,3.69869,2703.7,2703.2,0.8146]
[1739988859371,3.69851,2703.8,2703.2,4.51385]
[1739988859672,3.69911,2703.4,2702.8,4.5091]
[1739988859839,4.45491,2703.4,2702.8,8.20889]
[1739988860039,0.7558,2703.6,2702.8,0.8093]
[1739988860248,0.7558,2703.6,2703.0,3.69946]
[1739988860554,10.4861201,2703.8,2703.2,3.69926]
[1739988860555,10.4860801,2703.8,2703.2,3.69926]
[1739988860876,4.82288801,2703.7,2703.1,3.69943]
[1739988861041,3.69877,2703.6,2703.1,3.69943]
[1739988861246,4.82287801,2703.7,2703.2,3.69927]
[1739988861667,3.69883,2703.6,2703.1,3.69943]
[1739988861928,0.7558,2703.5,2703.0,3.69956]
[1739988862129,0.7558,2703.5,2703.1,3.69938]
[1739988862370,0.7558,2703.5,2702.8,4.50907]
[1739988862570,4.45472,2703.5,2703.0,3.69947]
[1739988862772,0.7558,2703.5,2703.0,3.69947]
[1739988862976,0.7558,2703.5,2702.6,3.70013]
[1739988862977,5.31,2703.4,2702.4,3.8505051]
[1739988863280,3.6998,2702.9,2702.4,0.1502251]
[1739988863444,3.69969,2703.0,2702.4,3.8506351]
[1739988863776,1.7277688,2703.5,2702.7,0.7912]
[1739988863992,0.8,2703.8,2703.0,3.69959]
[1739988864197,0.8,2703.8,2703.3,3.69909]
[1739988864550,0.8,2703.8,2703.1,3.69935]
[1739988864794,4.49862,2703.8,2703.2,3.69925]
[1739988864993,3.69865,2703.7,2703.1,7.39869]
[1739988865159,3.69865,2703.7,2703.1,7.39872]
[1739988865358,4.4985,2703.8,2703.1,7.39872]
[1739988865589,3.69875,2703.7,2703.1,3.69934]
[1739988865896,3.69877,2703.6,2703.1,3.69934]
[1739988866081,3.69883,2703.6,2703.0,3.69958]
[1739988866470,3.69895,2703.5,2702.9,4.49087]
[1739988866653,3.69895,2703.5,2703.0,3.69956]
[1739988866997,4.818484,2703.7,2703.0,3.69946]
[1739988867210,4.818484,2703.7,2703.1,3.69938]
[1739988867598,3.69877,2703.6,2703.1,3.69938]
[1739988868303,3.69877,2703.6,2702.9,4.4908]
[1739988868509,3.69877,2703.6,2702.9,0.7912]
[1739988868510,9.9404754,2703.6,2702.9,0.7912]
[1739988868656,6.2417054,2703.6,2703.2,3.69929]
[1739988868861,6.2417054,2703.6,2702.9,0.7912]
[1739988868862,6.0959,2703.6,2702.9,0.7912]
[1739988869188,9.79468,2703.6,2702.9,0.7912]
[1739988869359,9.79468,2703.6,2703.0,3.69956]
[1739988869559,9.79468,2703.6,2702.9,4.49086]
[1739988869759,9.79468,2703.6,2702.9,0.7912]
[1739988869989,11.2559804,2703.6,2703.0,7.39901]
[1739988870374,7.5572004,2703.6,2703.1,3.69942]
[1739988871209,5.31,2703.6,2703.4,3.69897]
[1739988871517,5.31,2703.6,2703.2,3.69923]
[1739988871720,5.31,2703.6,2703.2,7.39846]
[1739988871920,5.31,2703.6,2703.3,3.69917]
[1739988872123,5.31,2703.6,2703.5,3.6989]
[1739988872620,5.31,2703.6,2703.4,4.50613]
[1739988872827,5.31,2703.6,2703.2,4.50632]
[1739988873117,5.31,2703.6,2703.3,3.69916]
[1739988873492,5.31,2703.6,2703.4,3.699]
[1739988873705,5.31,2703.6,2703.3,3.6991]
[1739988873915,5.31,2703.6,2703.2,4.50628]
[1739988874112,5.31,2703.6,2703.4,7.39794]
[1739988874434,5.31,2703.6,2703.5,3.6989]
[1739988874716,5.31,2704.0,2703.4,3.69897]
[1739988874922,5.31,2704.0,2703.2,0.8071]
[1739988874923,5.31,2704.0,2703.7,3.69853]
[1739988875091,5.31,2704.0,2703.7,3.69861]
[1739988875293,5.31,2704.0,2703.5,3.6988]
[1739988875492,5.31,2704.0,2703.6,3.69877]
[1739988876226,5.31,2704.0,2703.6,3.69876]
[1739988876520,5.31,2704.0,2703.4,3.69893]
[1739988876722,5.31,2704.0,2703.6,3.69875]
[1739988878319,5.31,2704.0,2703.7,3.69863]
[1739988879132,5.31,2704.0,2703.7,7.39719]
[1739988879333,5.31,2704.0,2703.9,3.69836]
[1739988879511,0.8089,2704.5,2704.2,3.69791]
[1739988879713,0.8089,2704.7,2704.2,3.69791]
[1739988880018,6.897295,2704.7,2704.2,3.69791]
[1739988880216,0.278,2704.8,2704.4,3.69756]
[1739988880454,0.278,2704.8,2704.2,3.69788]
[1739988880749,3.9752,2704.8,2704.1,4.48448]
[1739988880948,3.69748,2704.6,2704.0,3.69819]
[1739988881252,0.7659,2704.5,2704.1,3.69801]
[1739988881607,0.7659,2704.5,2703.7,4.46074]
[1739988881811,3.69767,2704.4,2703.7,4.4607]
[1739988882048,3.69767,2704.4,2703.8,3.69848]
[1739988882243,0.446357,2704.3,2703.8,3.69848]
[1739988882953,0.446357,2704.3,2703.8,3.69843]
[1739988883117,3.7659,2704.5,2703.5,9.83108]
[1739988883307,9.0759,2704.5,2703.9,3.69823]
[1739988883661,12.77346,2704.5,2703.9,3.69823]
[1739988884452,12.77346,2704.5,2703.8,3.69849]
[1739988884453,3.69769,2704.4,2703.8,3.69849]
[1739988884610,3.69769,2704.4,2703.9,3.69834]
[1739988884925,1.277359,2704.3,2703.7,7.39707]
[1739988885122,1.277359,2704.3,2703.7,3.69853]
[1739988885348,1.277359,2704.3,2703.7,3.69852]
[1739988885546,0.8096,2704.1,2703.5,4.46103]
[1739988886155,0.8096,2704.1,2703.6,3.69871]
[1739988887433,1.9190919,2704.1,2703.6,3.69871]
[1739988888614,1.9190919,2704.1,2703.6,3.69868]
[1739988889720,1.9190919,2704.1,2703.7,3.69854]
[1739988890046,1.9190919,2704.1,2703.6,3.69868]
[1739988890222,5.31,2704.3,2703.8,0.7766]
[1739988890432,0.8154,2704.7,2704.2,3.69795]
[1739988890637,6.1254,2704.7,2704.2,3.69795]
[1739988890879,7.06574,2704.7,2704.1,3.69807]
[1739988891045,7.06574,2704.7,2703.8,0.7766]
[1739988891245,7.06574,2704.7,2704.3,3.6978]
[1739988891559,7.06574,2704.7,2704.1,3.69808]
[1739988891932,7.06574,2704.7,2704.3,3.6978]
[1739988892377,7.06574,2704.7,2704.4,3.69761]
[1739988892550,6.1254,2704.7,2704.4,3.69761]
[1739988893935,6.1254,2704.7,2704.2,3.69784]
[1739988894136,6.1254,2704.7,2704.0,3.69813]
[1739988894336,6.1254,2704.7,2704.1,3.69801]
[1739988895070,6.1254,2704.7,2703.8,0.7766]
[1739988895376,6.1254,2704.7,2704.2,3.69787]
[1739988895581,5.31,2704.7,2704.2,0.793]
[1739988895881,5.31,2704.7,2704.6,3.6974]